[Event "TOP 12F 2021"]
[Site "RENNES, France"]
[Date "2021.08.29"]
[Round "5.5"]
[White "Paehtz, Elisabeth"]
[Black "Vega Gutierrez, Sabrina"]
[Result "1/2-1/2"]
[TimeControl "1H30 + 30 sec/coup"]
[WhiteElo "2466"]
[BlackElo "2392"]

1. Nf3 {[%clk 01:30:58]} {[%emt 01:21:15]} d5 {[%clk 01:30:23]} 2. e3 {[%clk
01:31:23]} Nf6 {[%clk 01:29:59]} {[%emt 00:00:38]} 3. c4 {[%clk 01:31:47]}
{[%emt 00:00:06]} e6 {[%clk 01:29:51]} {[%emt 00:00:38]} 4. b3 {[%clk
01:31:57]} {[%emt 00:00:20]} Bd6 {[%clk 01:20:16]} {[%emt 00:10:04]} 5. Bb2
{[%clk 01:32:09]} {[%emt 00:00:18]} O-O {[%clk 01:20:38]} {[%emt 00:00:08]} 6.
Nc3 {[%clk 01:32:21]} {[%emt 00:00:18]} a6 {[%clk 01:20:53]} {[%emt 00:00:15]}
7. g3 {[%clk 01:31:27]} {[%emt 00:01:24]} b6 {[%clk 01:19:18]} {[%emt
00:02:05]} 8. cxd5 {[%clk 01:31:32]} {[%emt 00:00:26]} exd5 {[%clk 01:19:29]}
{[%emt 00:00:18]} 9. Bg2 {[%clk 01:31:48]} {[%emt 00:00:14]} Bb7 {[%clk
01:19:32]} {[%emt 00:00:27]} 10. O-O {[%clk 01:31:24]} {[%emt 00:00:54]} Nbd7
{[%clk 01:19:16]} {[%emt 00:00:46]} 11. Ne2 {[%clk 01:29:49]} {[%emt 00:02:06]}
Re8 {[%clk 01:17:48]} {[%emt 00:01:57]} 12. Rc1 {[%clk 01:28:55]} {[%emt
00:01:24]} Nc5 {[%clk 01:15:04]} {[%emt 00:03:13]} 13. Qc2 {[%clk 01:22:33]}
{[%emt 00:06:53]} a5 {[%clk 01:13:18]} {[%emt 00:02:15]} 14. Rfd1 {[%clk
01:18:21]} {[%emt 00:04:43]} Ba6 {[%clk 00:47:50]} {[%emt 00:25:57]} 15. d3
{[%clk 01:16:01]} {[%emt 00:02:50]} a4 {[%clk 00:48:11]} {[%emt 00:00:09]} 16.
Nfd4 {[%clk 00:53:26]} {[%emt 00:23:06]} axb3 {[%clk 00:45:42]} {[%emt
00:02:58]} 17. axb3 {[%clk 00:51:53]} {[%emt 00:02:03]} Qd7 {[%clk 00:44:26]}
{[%emt 00:01:46]} 18. Nf4 {[%clk 00:44:22]} {[%emt 00:08:02]} Bb7 {[%clk
00:25:43]} {[%emt 00:19:13]} 19. Bh3 {[%clk 00:41:55]} {[%emt 00:02:57]} Qd8
{[%clk 00:26:07]} {[%emt 00:00:06]} 20. Ba1 {[%clk 00:27:35]} {[%emt 00:14:50]}
Na6 {[%clk 00:24:35]} {[%emt 00:02:02]} 21. Nc6 {[%clk 00:24:42]} {[%emt
00:03:23]} Bxc6 {[%clk 00:24:35]} {[%emt 00:00:30]} 22. Qxc6 {[%clk 00:25:08]}
{[%emt 00:00:05]} Nb4 {[%clk 00:21:43]} {[%emt 00:03:21]} 23. Bxf6 {[%clk
00:25:24]} {[%emt 00:00:15]} Qxf6 {[%clk 00:07:12]} {[%emt 00:15:02]} 24. Nxd5
{[%clk 00:25:42]} {[%emt 00:00:11]} Nxd5 {[%clk 00:07:32]} {[%emt 00:00:10]} 25.
Qxd5 {[%clk 00:26:05]} {[%emt 00:00:07]} Ra2 {[%clk 00:07:56]} {[%emt
00:00:07]} 26. Rf1 {[%clk 00:24:27]} {[%emt 00:02:07]} Qb2 {[%clk 00:04:39]}
{[%emt 00:03:47]} 27. Rb1 {[%clk 00:22:15]} {[%emt 00:02:41]} Qc3 {[%clk
00:04:30]} {[%emt 00:00:40]} 28. Qc4 {[%clk 00:20:39]} {[%emt 00:02:05]} Qd2
{[%clk 00:03:20]} {[%emt 00:01:40]} 29. Rbd1 {[%clk 00:17:55]} {[%emt
00:03:15]} Qb2 {[%clk 00:03:41]} {[%emt 00:00:09]} 30. Rde1 {[%clk 00:16:06]}
{[%emt 00:02:19]} Re5 {[%clk 00:00:47]} {[%emt 00:03:24]} 31. d4 {[%clk
00:14:51]} {[%emt 00:01:44]} Rea5 {[%clk 00:00:36]} {[%emt 00:00:41]} 32. Bg4
{[%clk 00:13:49]} {[%emt 00:01:33]} g6 {[%clk 00:00:33]} {[%emt 00:00:33]} 33.
Re2 {[%clk 00:12:57]} {[%emt 00:01:22]} Qa3 {[%clk 00:01:01]} {[%emt 00:00:02]}
34. Rxa2 {[%clk 00:13:01]} {[%emt 00:00:25]} Qxa2 {[%clk 00:01:29]} {[%emt
00:00:02]} 35. Bf3 {[%clk 00:12:18]} {[%emt 00:01:13]} c5 {[%clk 00:00:37]}
{[%emt 00:01:23]} 36. Bd5 {[%clk 00:10:45]} {[%emt 00:02:03]} Ra7 {[%clk
00:01:05]} {[%emt 00:00:02]} 37. dxc5 {[%clk 00:10:55]} {[%emt 00:00:20]} Bxc5
{[%clk 00:01:21]} {[%emt 00:00:14]} 38. Qf4 {[%clk 00:10:02]} {[%emt 00:01:22]}
Rd7 {[%clk 00:00:41]} {[%emt 00:01:11]} 39. e4 {[%clk 00:08:46]} {[%emt
00:01:46]} Qb2 {[%clk 00:00:55]} {[%emt 00:00:16]} 40. h4 {[%clk 00:08:16]}
{[%emt 00:01:00]} h5 {[%clk 00:00:51]} {[%emt 00:00:33]} 41. Rd1 {[%clk
00:07:54]} {[%emt 00:00:50]} Bd4 {[%clk 00:00:37]} {[%emt 00:00:46]} 42. Kg2
{[%clk 00:06:53]} {[%emt 00:01:31]} Kg7 {[%clk 00:00:33]} {[%emt 00:00:35]} 43.
Rd3 {[%clk 00:05:34]} {[%emt 00:01:49]} Ra7 {[%clk 00:00:32]} {[%emt 00:00:31]}
44. Qd2 {[%clk 00:02:42]} {[%emt 00:03:21]} Qxd2 {[%clk 00:00:39]} {[%emt
00:00:24]} 45. Rxd2 {[%clk 00:03:07]} {[%emt 00:00:04]} Bc5 {[%clk 00:00:43]}
{[%emt 00:00:25]} 46. Bc4 {[%clk 00:03:21]} {[%emt 00:00:17]} Kf6 {[%clk
00:00:51]} {[%emt 00:00:22]} 47. f4 {[%clk 00:03:17]} {[%emt 00:00:33]} Ke7
{[%clk 00:01:18]} {[%emt 00:00:03]} 48. Bb5 {[%clk 00:03:02]} {[%emt 00:00:45]}
Bb4 {[%clk 00:00:32]} {[%emt 00:01:17]} 49. Rc2 {[%clk 00:03:05]} {[%emt
00:00:26]} Bc5 {[%clk 00:00:48]} {[%emt 00:00:14]} 50. Kf3 {[%clk 00:02:21]}
{[%emt 00:01:14]} Ra1 {[%clk 00:01:05]} {[%emt 00:00:13]} 51. Rd2 {[%clk
00:01:37]} {[%emt 00:01:14]} Ra7 {[%clk 00:00:33]} {[%emt 00:01:02]} 52. Ba4
{[%clk 00:01:05]} {[%emt 00:01:01]} Rc7 {[%clk 00:00:40]} {[%emt 00:00:23]} 53.
Rd5 {[%clk 00:00:49]} {[%emt 00:00:47]} Bd6 {[%clk 00:00:49]} {[%emt 00:00:21]}
54. e5 {[%clk 00:00:51]} {[%emt 00:00:29]} Rc3+ {[%clk 00:01:00]} {[%emt
00:00:18]} 55. Kg2 {[%clk 00:00:42]} {[%emt 00:00:38]} Bc5 {[%clk 00:00:33]}
{[%emt 00:00:58]} 56. Rd7+ {[%clk 00:00:44]} {[%emt 00:00:28]} Kf8 {[%clk
00:00:32]} {[%emt 00:00:31]} 57. Rd8+ {[%clk 00:00:44]} {[%emt 00:00:29]} Kg7
{[%clk 00:00:43]} {[%emt 00:00:20]} 58. Rd2 {[%clk 00:01:07]} {[%emt 00:00:07]}
Bb4 {[%clk 00:00:33]} {[%emt 00:00:41]} 59. Re2 {[%clk 00:01:19]} {[%emt
00:00:18]} Rd3 {[%clk 00:00:33]} {[%emt 00:00:30]} 60. e6 {[%clk 00:01:01]}
{[%emt 00:00:48]} fxe6 {[%clk 00:00:58]} {[%emt 00:00:05]} 61. Rxe6 {[%clk
00:01:26]} {[%emt 00:00:05]} Rd6 {[%clk 00:01:25]} {[%emt 00:00:03]} 62. Re3
{[%clk 00:01:04]} {[%emt 00:00:49]} Bc5 {[%clk 00:01:09]} {[%emt 00:00:49]} 63.
Rc3 {[%clk 00:00:55]} {[%emt 00:00:39]} Rd2+ {[%clk 00:01:01]} {[%emt
00:00:40]} 64. Kf3 {[%clk 00:01:19]} {[%emt 00:00:05]} 1/2-1/2

[Event "TOP 12F 2021"]
[Site "RENNES, France"]
[Date "2021.08.29"]
[Round "5.8"]
[White "Leconte, Maria"]
[Black "Thomas, Apolline"]
[Result "1-0"]
[TimeControl "1H30 + 30 sec/coup"]
[WhiteElo "2232"]
[BlackElo "1954"]

1. Nf3 {[%clk 01:30:51]} {[%emt 01:21:15]} d5 {[%clk 01:29:47]} {[%emt
00:00:34]} 2. g3 {[%clk 01:31:14]} {[%emt 00:00:07]} Nf6 {[%clk 01:29:52]}
{[%emt 00:00:25]} 3. Bg2 {[%clk 01:31:38]} {[%emt 00:00:06]} Bf5 {[%clk
01:25:24]} {[%emt 00:04:58]} 4. d3 {[%clk 01:30:42]} {[%emt 00:01:26]} Nc6
{[%clk 01:24:40]} {[%emt 00:01:13]} 5. Nh4 {[%clk 01:25:53]} {[%emt 00:05:19]}
g6 {[%clk 01:22:06]} {[%emt 00:03:05]} 6. Nxf5 {[%clk 01:19:34]} {[%emt
00:06:49]} gxf5 {[%clk 01:22:29]} {[%emt 00:00:07]} 7. c4 {[%clk 01:18:48]}
{[%emt 00:01:16]} e6 {[%clk 01:13:34]} {[%emt 00:09:25]} 8. cxd5 {[%clk
01:15:18]} {[%emt 00:04:00]} Nxd5 {[%clk 01:11:32]} {[%emt 00:02:32]} 9. Nc3
{[%clk 01:15:33]} {[%emt 00:00:14]} Bg7 {[%clk 01:01:46]} {[%emt 00:10:17]} 10.
Nxd5 {[%clk 01:05:32]} {[%emt 00:10:32]} exd5 {[%clk 01:02:12]} {[%emt
00:00:04]} 11. O-O {[%clk 00:56:20]} {[%emt 00:09:42]} Qd7 {[%clk 00:54:03]}
{[%emt 00:08:39]} 12. Rb1 {[%clk 00:52:47]} {[%emt 00:04:02]} O-O-O {[%clk
00:50:57]} {[%emt 00:03:36]} 13. b4 {[%clk 00:52:36]} {[%emt 00:00:41]} h5
{[%clk 00:50:01]} {[%emt 00:01:26]} 14. b5 {[%clk 00:51:48]} {[%emt 00:01:18]}
Nd4 {[%clk 00:45:26]} {[%emt 00:05:05]} 15. a4 {[%clk 00:41:36]} {[%emt
00:10:42]} h4 {[%clk 00:43:43]} {[%emt 00:02:14]} 16. Bg5 {[%clk 00:31:18]}
{[%emt 00:10:48]} hxg3 {[%clk 00:18:05]} {[%emt 00:26:08]} 17. Bxd8 {[%clk
00:28:35]} {[%emt 00:03:13]} gxh2+ {[%clk 00:18:05]} {[%emt 00:00:30]} 18. Kh1
{[%clk 00:29:01]} {[%emt 00:00:03]} Qxd8 {[%clk 00:18:19]} {[%emt 00:00:15]} 19.
e3 {[%clk 00:29:16]} {[%emt 00:00:16]} Ne6 {[%clk 00:11:27]} {[%emt 00:07:22]}
20. Qf3 {[%clk 00:29:24]} {[%emt 00:00:21]} f4 {[%clk 00:10:27]} {[%emt
00:01:30]} 21. a5 {[%clk 00:19:50]} {[%emt 00:10:04]} c6 {[%clk 00:05:05]}
{[%emt 00:05:53]} 22. a6 {[%clk 00:19:46]} {[%emt 00:00:34]} bxa6 {[%clk
00:03:54]} {[%emt 00:01:41]} 23. bxc6 {[%clk 00:19:46]} {[%emt 00:00:30]} Qc7
{[%clk 00:02:40]} {[%emt 00:01:44]} 24. Qxd5 {[%clk 00:18:16]} {[%emt
00:02:00]} Rd8 {[%clk 00:02:03]} {[%emt 00:01:06]} 25. Qc4 {[%clk 00:18:11]}
{[%emt 00:00:35]} Qe5 {[%clk 00:00:57]} {[%emt 00:01:37]} 26. Qxa6+ {[%clk
00:17:38]} {[%emt 00:01:04]} Kc7 {[%clk 00:01:04]} {[%emt 00:00:22]} 27. Rb7+
{[%clk 00:17:33]} {[%emt 00:00:35]} 1-0

[Event "TOP 12F 2021"]
[Site "RENNES, France"]
[Date "2021.08.29"]
[Round "5.9"]
[White "Savina, Anastasia"]
[Black "Benmesbah, Natacha"]
[Result "1-0"]
[TimeControl "1H30 + 30 sec/coup"]
[WhiteElo "2336"]
[BlackElo "2239"]

1. d4 {[%clk 01:28:42]} {[%emt 00:01:48]} Nf6 {[%clk 01:28:42]} {[%emt
00:02:15]} 2. c4 {[%clk 01:28:55]} {[%emt 00:00:21]} c5 {[%clk 01:28:52]}
{[%emt 00:00:20]} 3. d5 {[%clk 01:29:16]} {[%emt 00:00:09]} g6 {[%clk
01:29:18]} {[%emt 00:00:04]} 4. Nc3 {[%clk 01:29:42]} {[%emt 00:00:04]} Bg7
{[%clk 01:29:44]} {[%emt 00:00:04]} 5. e4 {[%clk 01:29:52]} {[%emt 00:00:20]}
d6 {[%clk 01:29:47]} {[%emt 00:00:28]} 6. f3 {[%clk 01:28:32]} {[%emt
00:01:50]} O-O {[%clk 01:24:20]} {[%emt 00:05:57]} 7. Bg5 {[%clk 01:28:20]}
{[%emt 00:00:42]} h6 {[%clk 01:22:07]} {[%emt 00:02:44]} 8. Be3 {[%clk
01:24:01]} {[%emt 00:04:48]} e6 {[%clk 01:21:59]} {[%emt 00:00:38]} 9. Qd2
{[%clk 01:23:55]} {[%emt 00:00:37]} exd5 {[%clk 01:22:17]} {[%emt 00:00:11]} 10.
cxd5 {[%clk 01:24:20]} {[%emt 00:00:05]} Ne8 {[%clk 01:22:10]} {[%emt
00:00:37]} 11. Nge2 {[%clk 01:22:31]} {[%emt 00:02:18]} Nd7 {[%clk 01:22:12]}
{[%emt 00:00:28]} 12. Ng3 {[%clk 01:19:09]} {[%emt 00:03:53]} Kh7 {[%clk
01:22:23]} {[%emt 00:00:19]} 13. Be2 {[%clk 01:18:36]} {[%emt 00:01:03]} a6
{[%clk 01:08:43]} {[%emt 00:14:10]} 14. a4 {[%clk 01:18:07]} {[%emt 00:00:58]}
Ne5 {[%clk 01:07:38]} {[%emt 00:01:35]} 15. O-O {[%clk 01:15:53]} {[%emt
00:02:44]} f5 {[%clk 01:03:08]} {[%emt 00:05:01]} 16. exf5 {[%clk 01:10:15]}
{[%emt 00:06:07]} gxf5 {[%clk 01:02:48]} {[%emt 00:00:51]} 17. Nh5 {[%emt
00:05:18]} Qe7 {[%clk 00:59:36]} 18. a5 {[%clk 01:02:07]} {[%emt 00:07:30]} Bd7
{[%clk 00:59:03]} {[%emt 00:01:03]} 19. Na4 {[%clk 00:46:42]} {[%emt 00:15:56]}
Bb5 {[%clk 00:57:34]} {[%emt 00:01:59]} 20. Nb6 {[%clk 00:46:24]} {[%emt
00:00:48]} Bxe2 {[%clk 00:56:30]} {[%emt 00:01:34]} 21. Qxe2 {[%clk 00:46:40]}
{[%emt 00:00:14]} Rd8 {[%clk 00:56:24]} {[%emt 00:00:36]} 22. Bd2 {[%clk
00:41:50]} {[%emt 00:05:20]} Bh8 {[%clk 00:55:12]} {[%emt 00:01:41]} 23. Qe3
{[%clk 00:36:24]} {[%emt 00:05:56]} Rf6 {[%clk 00:52:30]} {[%emt 00:03:13]} 24.
Nxf6+ {[%clk 00:34:23]} {[%emt 00:02:31]} Qxf6 {[%clk 00:52:55]} {[%emt
00:00:05]} 25. Bc3 {[%clk 00:27:12]} {[%emt 00:07:41]} Qf7 {[%clk 00:52:07]}
{[%emt 00:01:17]} 26. Ra4 {[%clk 00:20:41]} {[%emt 00:07:02]} Nc7 {[%clk
00:50:53]} {[%emt 00:01:44]} 27. Rh4 {[%clk 00:18:01]} {[%emt 00:03:10]} Bg7
{[%clk 00:51:11]} {[%emt 00:00:12]} 28. f4 {[%clk 00:14:58]} {[%emt 00:03:33]}
Ng6 {[%clk 00:47:57]} {[%emt 00:03:45]} 29. Rh3 {[%clk 00:14:49]} {[%emt
00:00:39]} Re8 {[%clk 00:47:36]} {[%emt 00:00:50]} 30. Qd2 {[%clk 00:10:33]}
{[%emt 00:04:46]} Nb5 {[%clk 00:46:18]} {[%emt 00:01:47]} 31. Bxg7 {[%clk
00:09:08]} {[%emt 00:01:57]} Qxg7 {[%clk 00:46:12]} {[%emt 00:00:36]} 32. Re3
{[%clk 00:08:38]} {[%emt 00:01:00]} Rxe3 {[%clk 00:45:57]} {[%emt 00:00:46]} 33.
Qxe3 {[%clk 00:09:04]} {[%emt 00:00:04]} Qxb2 {[%clk 00:46:22]} {[%emt
00:00:05]} 34. Qe6 {[%clk 00:08:23]} {[%emt 00:01:11]} Nh4 {[%clk 00:42:32]}
{[%emt 00:04:20]} 35. Qe7+ {[%clk 00:08:18]} {[%emt 00:00:35]} 1-0

[Event "TOP 12F 2021"]
[Site "RENNES, France"]
[Date "2021.08.29"]
[Round "5.10"]
[White "Afraoui, Anaelle"]
[Black "Thomas, Anysia"]
[Result "1/2-1/2"]
[TimeControl "1H30 + 30 sec/coup"]
[WhiteElo "2118"]
[BlackElo "2170"]

1. e4 {[%clk 01:30:57]} c5 {[%clk 01:30:44]} 2. Nf3 {[%clk 01:31:19]} g6 {[%clk
01:31:01]} 3. c3 {[%clk 01:31:34]} {[%emt 00:00:11]} d5 {[%clk 01:31:14]}
{[%emt 00:00:17]} 4. Bb5+ {[%clk 01:31:41]} {[%emt 00:00:23]} Bd7 {[%clk
01:28:00]} {[%emt 00:03:45]} 5. Bxd7+ {[%clk 01:31:56]} {[%emt 00:00:14]} Qxd7
{[%clk 01:28:14]} {[%emt 00:00:16]} 6. Ne5 {[%clk 01:32:20]} {[%emt 00:00:05]}
Qe6 {[%clk 01:17:53]} {[%emt 00:10:52]} 7. Qa4+ {[%clk 01:32:39]} {[%emt
00:00:11]} Nc6 {[%clk 01:16:31]} {[%emt 00:01:51]} 8. Nxc6 {[%clk 01:32:59]}
{[%emt 00:00:10]} Qxc6 {[%clk 01:16:47]} {[%emt 00:00:15]} 9. Qxc6+ {[%clk
01:33:23]} {[%emt 00:00:06]} bxc6 {[%clk 01:17:15]} {[%emt 00:00:02]} 10. d3
{[%clk 01:33:44]} {[%emt 00:00:08]} Nf6 {[%clk 01:13:40]} {[%emt 00:04:05]} 11.
f3 {[%clk 01:34:08]} {[%emt 00:00:07]} Bg7 {[%clk 01:12:10]} {[%emt 00:01:59]}
12. Kd1 {[%clk 01:33:26]} {[%emt 00:01:12]} O-O {[%clk 01:12:05]} {[%emt
00:00:35]} 13. Kc2 {[%clk 01:31:20]} {[%emt 00:02:36]} c4 {[%clk 01:08:19]}
{[%emt 00:04:17]} 14. d4 {[%clk 01:21:27]} {[%emt 00:10:22]} dxe4 {[%clk
01:08:06]} {[%emt 00:00:43]} 15. fxe4 {[%clk 01:16:27]} {[%emt 00:05:30]} Nxe4
{[%clk 01:08:17]} {[%emt 00:00:20]} 16. Re1 {[%clk 01:16:52]} {[%emt 00:00:05]}
f5 {[%clk 01:00:51]} {[%emt 00:07:56]} 17. Na3 {[%clk 01:11:38]} {[%emt
00:05:44]} c5 {[%clk 00:56:34]} {[%emt 00:04:47]} 18. dxc5 {[%clk 01:08:16]}
{[%emt 00:03:52]} Rac8 {[%clk 00:46:47]} {[%emt 00:10:17]} 19. Be3 {[%clk
00:58:01]} {[%emt 00:10:44]} Bf6 {[%clk 00:43:03]} {[%emt 00:04:14]} 20. Nxc4
{[%clk 00:54:58]} {[%emt 00:03:32]} Nxc5 {[%clk 00:42:53]} {[%emt 00:00:42]} 21.
Rad1 {[%clk 00:46:20]} {[%emt 00:09:08]} Ne4 {[%clk 00:24:48]} {[%emt
00:18:35]} 22. Nd2 {[%clk 00:39:47]} {[%emt 00:07:03]} Nxc3 {[%clk 00:17:49]}
{[%emt 00:07:29]} 23. bxc3 {[%clk 00:38:16]} {[%emt 00:02:01]} Rxc3+ {[%clk
00:18:14]} {[%emt 00:00:05]} 24. Kb1 {[%clk 00:38:35]} {[%emt 00:00:11]} a5
{[%clk 00:11:22]} {[%emt 00:07:22]} 25. Nb3 {[%clk 00:36:01]} {[%emt 00:03:04]}
a4 {[%clk 00:11:14]} {[%emt 00:00:38]} 26. Bd4 {[%clk 00:36:25]} {[%emt
00:00:06]} axb3 {[%clk 00:07:28]} {[%emt 00:04:17]} 27. Bxc3 {[%clk 00:36:21]}
{[%emt 00:00:33]} Bxc3 {[%clk 00:07:40]} {[%emt 00:00:17]} 28. Rxe7 {[%clk
00:33:46]} {[%emt 00:03:06]} Bf6 {[%clk 00:07:07]} {[%emt 00:01:03]} 29. Rb7
{[%clk 00:30:17]} {[%emt 00:03:58]} bxa2+ {[%clk 00:06:35]} {[%emt 00:01:04]}
30. Kxa2 {[%clk 00:30:39]} {[%emt 00:00:08]} Rf7 {[%clk 00:06:01]} {[%emt
00:01:04]} 31. Rxf7 {[%clk 00:29:25]} {[%emt 00:01:44]} Kxf7 {[%clk 00:06:29]}
{[%emt 00:00:02]} 32. Kb3 {[%clk 00:26:36]} {[%emt 00:03:19]} g5 {[%clk
00:05:34]} {[%emt 00:01:25]} 33. Kc4 {[%clk 00:26:27]} {[%emt 00:00:40]} Ke6
{[%clk 00:05:55]} {[%emt 00:00:09]} 34. Rb1 {[%clk 00:24:52]} {[%emt 00:02:05]}
h5 {[%clk 00:04:56]} {[%emt 00:01:29]} 35. Rb6+ {[%clk 00:21:44]} {[%emt
00:03:38]} Ke5 {[%clk 00:05:18]} {[%emt 00:00:08]} 36. Rb5+ {[%clk 00:22:07]}
{[%emt 00:00:07]} Ke6 {[%clk 00:05:22]} {[%emt 00:00:26]} 37. Ra5 {[%clk
00:18:47]} {[%emt 00:03:50]} g4 {[%clk 00:03:32]} {[%emt 00:02:20]} 38. Kd3
{[%clk 00:18:25]} {[%emt 00:00:51]} h4 {[%clk 00:03:22]} {[%emt 00:00:40]} 39.
h3 {[%clk 00:10:55]} {[%emt 00:08:00]} gxh3 {[%clk 00:00:54]} {[%emt 00:02:58]}
40. gxh3 {[%clk 00:11:20]} {[%emt 00:00:05]} Be5 {[%clk 00:01:09]} {[%emt
00:00:15]} 41. Ke3 {[%clk 00:09:19]} {[%emt 00:02:31]} Bg3 {[%clk 00:01:20]}
{[%emt 00:00:18]} 42. Kf3 {[%clk 00:08:10]} {[%emt 00:01:40]} Kf6 {[%clk
00:01:32]} {[%emt 00:00:18]} 43. Ra6+ {[%clk 00:07:20]} {[%emt 00:01:20]} Ke5
{[%clk 00:01:55]} {[%emt 00:00:07]} 44. Ke3 {[%clk 00:05:38]} {[%emt 00:02:12]}
Bf4+ {[%clk 00:02:16]} {[%emt 00:00:09]} 45. Kd3 {[%clk 00:05:44]} {[%emt
00:00:24]} Bg3 {[%clk 00:02:30]} {[%emt 00:00:15]} 46. Ra4 {[%clk 00:04:48]}
{[%emt 00:01:26]} Be1 {[%clk 00:01:38]} {[%emt 00:01:21]} 47. Ke2 {[%clk
00:04:54]} {[%emt 00:00:24]} Bg3 {[%clk 00:02:02]} {[%emt 00:00:07]} 48. Ke3
{[%clk 00:05:18]} {[%emt 00:00:06]} Ke6 {[%clk 00:01:50]} {[%emt 00:00:41]} 49.
Kd3 {[%clk 00:03:45]} {[%emt 00:02:04]} Ke5 {[%clk 00:01:20]} {[%emt 00:01:01]}
50. Ke2 {[%clk 00:03:00]} {[%emt 00:01:16]} Ke6 {[%clk 00:01:33]} {[%emt
00:00:16]} 51. Ra8 {[%clk 00:03:02]} {[%emt 00:00:28]} Ke5 {[%clk 00:01:27]}
{[%emt 00:00:36]} 52. Kf3 {[%clk 00:03:18]} {[%emt 00:00:14]} Ke6 {[%clk
00:01:34]} {[%emt 00:00:23]} 53. Re8+ {[%clk 00:03:43]} {[%emt 00:00:06]} Kf6
{[%clk 00:01:50]} {[%emt 00:00:14]} 54. Ke3 {[%clk 00:03:49]} {[%emt 00:00:24]}
Kf7 {[%clk 00:02:05]} {[%emt 00:00:14]} 55. Rc8 {[%clk 00:03:34]} {[%emt
00:00:44]} Ke6 {[%clk 00:02:31]} {[%emt 00:00:05]} 56. Rc2 {[%clk 00:01:40]}
{[%emt 00:02:24]} Ke5 {[%clk 00:02:51]} {[%emt 00:00:10]} 57. Re2 {[%clk
00:01:43]} {[%emt 00:00:26]} Kd5 {[%clk 00:02:12]} {[%emt 00:01:09]} 58. Kd3
{[%clk 00:01:21]} {[%emt 00:00:53]} f4 {[%clk 00:01:03]} {[%emt 00:01:39]} 59.
Ra2 {[%clk 00:00:53]} {[%emt 00:00:57]} f3 {[%clk 00:01:27]} {[%emt 00:00:07]}
60. Ra5+ {[%clk 00:01:21]} {[%emt 00:00:02]} Ke6 {[%clk 00:01:49]} {[%emt
00:00:07]} 61. Ke4 {[%clk 00:01:42]} {[%emt 00:00:09]} f2 {[%clk 00:01:34]}
{[%emt 00:00:45]} 62. Ra1 {[%clk 00:02:09]} {[%emt 00:00:02]} 1/2-1/2

[Event "TOP 12F 2021"]
[Site "RENNES, France"]
[Date "2021.08.29"]
[Round "5.11"]
[White "Bonvalot, Isabelle"]
[Black "Doluhanova, Evgeniya"]
[Result "0-1"]
[TimeControl "1H30 + 30 sec/coup"]
[WhiteElo "1831"]
[BlackElo "2207"]

1. e4 {[%clk 01:27:05]} {[%emt 00:03:03]} e5 {[%clk 01:30:56]} {[%emt
00:00:05]} 2. Nc3 {[%clk 01:27:27]} {[%emt 00:00:08]} Nc6 {[%clk 01:30:04]}
{[%emt 00:01:22]} 3. Bc4 {[%clk 01:27:48]} {[%emt 00:00:09]} d6 {[%clk
01:26:27]} {[%emt 00:04:07]} 4. f4 {[%clk 01:27:28]} {[%emt 00:00:50]} exf4
{[%clk 01:20:53]} {[%emt 00:06:03]} 5. d4 {[%clk 01:21:04]} {[%emt 00:06:55]}
Qh4+ {[%clk 01:20:02]} {[%emt 00:01:20]} 6. Kf1 {[%clk 01:20:47]} {[%emt
00:00:47]} Bg4 {[%clk 01:19:49]} {[%emt 00:00:43]} 7. Nf3 {[%clk 01:20:09]}
{[%emt 00:01:07]} Bxf3 {[%clk 01:18:13]} {[%emt 00:02:07]} 8. gxf3 {[%clk
01:20:29]} {[%emt 00:00:10]} Qh3+ {[%clk 01:16:28]} {[%emt 00:02:14]} 9. Kf2
{[%clk 01:20:11]} {[%emt 00:00:48]} g5 {[%clk 01:16:13]} {[%emt 00:00:45]} 10.
Nd5 {[%clk 01:19:32]} {[%emt 00:01:09]} O-O-O {[%clk 01:12:03]} {[%emt
00:04:40]} 11. c3 {[%clk 01:18:58]} {[%emt 00:01:04]} Nge7 {[%clk 01:07:13]}
{[%emt 00:05:20]} 12. b4 {[%clk 01:18:47]} {[%emt 00:00:41]} h5 {[%clk
00:44:52]} {[%emt 00:22:51]} 13. b5 {[%clk 01:06:18]} {[%emt 00:12:59]} Na5
{[%clk 00:44:19]} {[%emt 00:01:03]} 14. Nxe7+ {[%clk 01:02:04]} {[%emt
00:04:45]} Bxe7 {[%clk 00:44:37]} {[%emt 00:00:12]} 15. Bxf7 {[%clk 01:02:28]}
{[%emt 00:00:05]} Rdf8 {[%clk 00:43:34]} {[%emt 00:01:33]} 16. Bg6 {[%clk
01:02:28]} {[%emt 00:00:30]} g4 {[%clk 00:42:40]} {[%emt 00:01:24]} 17. Bf5+
{[%clk 01:01:20]} {[%emt 00:01:38]} Rxf5 {[%clk 00:42:43]} {[%emt 00:00:27]} 18.
exf5 {[%clk 01:01:16]} {[%emt 00:00:33]} gxf3 {[%clk 00:38:42]} {[%emt
00:04:31]} 19. Bxf4 {[%clk 00:58:11]} {[%emt 00:03:35]} Bh4+ {[%clk 00:35:05]}
{[%emt 00:04:07]} 20. Bg3 {[%clk 00:57:03]} {[%emt 00:01:38]} Qg2+ {[%clk
00:33:48]} {[%emt 00:01:47]} 21. Ke3 {[%clk 00:57:18]} {[%emt 00:00:15]} Re8+
{[%clk 00:33:08]} {[%emt 00:01:10]} 22. Kf4 {[%clk 00:54:06]} {[%emt 00:03:43]}
f2 {[%clk 00:32:57]} {[%emt 00:00:41]} 23. Qf3 {[%clk 00:53:43]} {[%emt
00:00:53]} Bg5+ {[%clk 00:33:10]} {[%emt 00:00:16]} 0-1